Cogmind - Beta 16.1 @@@ ROGUE MODE // 2026.03.13 @ 18:24:51 Player: puppuppit Result: Destroyed by 8Y-UIV(R) with Subdweller Machine Gun Performance ------------- Evolutions (0) 0 Regions Visited (2) 400 Robots Destroyed (52) 260 Value Destroyed (836) 836 Prototype IDs (0) 0 Alien Tech Used (0) 0 Bonus (0) 0 TOTAL SCORE: 1496 Bonus ------- None Cogmind --------- Core Integrity 0/250 Matter 270/300 Energy 200/200 System Corruption 0% Temperature Cool (6) Movement Treading (240) Ox1 Location -10/Subcaves Parts ------- > --- POWER (1) -------- Subdweller Power Source > --- PROPULSION (2) --- Light Treads Light Treads > --- UTILITY (2) ------ High-capacity Storage Unit Weapon Shielding > --- WEAPON (2) ------- Beam Cannon Beam Cannon > --- INVENTORY (20) --- Subdweller Power Source Wheel Wheel Subdweller Monowheel Heat Sink Large Storage Unit Large Matter Pod (150) Large Matter Pod (150) Subdweller Optics Subdweller Optics Improved Terrain Scanner Targeting Computer Targeting Computer Hacking Suite EM Pulse Gun Beam Cannon Subdweller Beam Cannon Assault Rifle Light Assault Rifle Mining Laser Peak State ------------ > --- POWER ------------ Subdweller Power Source > --- PROPULSION ------- Light Treads Light Treads > --- UTILITY ---------- High-capacity Storage Unit Improved Terrain Scanner > --- WEAPON ----------- Beam Cannon Beam Cannon > --- INVENTORY -------- Subdweller Power Source Wheel Wheel Subdweller Monowheel Heat Sink Large Storage Unit Large Matter Pod Large Matter Pod Subdweller Optics Subdweller Optics Targeting Computer Targeting Computer Weapon Shielding Hacking Suite EM Pulse Gun Beam Cannon Subdweller Beam Cannon Assault Rifle Light Assault Rifle Mining Laser [Rating: 12] Favorites ----------- Power Light Ion Engine Engine Light Ion Engine Propulsion Light Treads Treads Light Treads Wheel Wheel Utility High-capacity Storage Unit Device Improved Terrain Scanner Storage High-capacity Storage Unit Hackware Hacking Suite Protection Weapon Shielding Weapon Assault Rifle Energy Gun EM Pulse Gun Energy Cannon Beam Cannon Ballistic Gun Assault Rifle Special Weapon Mining Laser Build | -11 -10 -10 ------- Run | Yrd Mat Sub Slots Evolved . | . . . Power . | . . . Propulsion . | . . . Utility . | . . . Weapon . | . . . Parts Attached 29 | 7 14 8 Power 5 | 1 3 1 Engine 5 | 1 3 1 Core . | . . . Reactor . | . . . Propulsion 9 | 2 4 3 Treads 4 | 2 1 1 Leg . | . . . Wheel 5 | . 3 2 Hover . | . . . Flight . | . . . Utility 7 | 2 4 1 Device 2 | 1 1 . Storage 3 | 1 2 . Processor . | . . . Hackware 1 | . 1 . Protection 1 | . . 1 Artifact . | . . . Weapon 8 | 2 3 3 Energy Gun 2 | 1 1 . Energy Cannon 3 | . . 3 Ballistic Gun 2 | 1 1 . Ballistic Cannon . | . . . Launcher . | . . . Special Weapon 1 | . 1 . Impact Weapon . | . . . Slashing Weapon . | . . . Piercing Weapon . | . . . Special Melee Weapon . | . . . Unidentified Prototypes . | . . . Parts Lost 7 | . 4 3 Power 2 | . 2 . Propulsion 4 | . 2 2 Utility . | . . . Weapon 1 | . . 1 Highest Loss Streak 2 | . 2 2 To Critical Strikes . | . . . Average Backups 13 | . 11 19 Power . | . . . Propulsion 1 | . . 3 Utility 7 | . 6 9 Weapon 4 | . 4 5 Tool/Special . | . . . Unused Backups 17 | . 4 13 Power 1 | . . 1 Propulsion 1 | . . 1 Utility 14 | . 4 10 Weapon 1 | . . 1 Tool/Special . | . . . Average Slot Usage (%) 97 | . 96 99 Engine 13 | . 13 14 Treads 18 | . 22 9 Wheel 7 | . 3 18 Device 5 | . 2 12 Storage 14 | . 14 14 Hackware 7 | . 11 . Energy Gun 9 | . 10 7 Energy Cannon 3 | . . 13 Ballistic Gun 13 | . 16 5 Peak Build Rating 12 | 9 11 12 Average Rating 10 | 7 9 11 On Entrance 6 | . 9 11 Avg Prop Armor Cover (%) 12 | . 12 . Naked Turns . | . . . Heaviest Build 52 | 13 49 52 Greatest Support 40 | 40 40 40 Greatest Overweight (x) 4 | . 4 4 Average Overweight (x) 1 | . 1 1 Largest Inventory Capacity 20 | 8 20 20 Average Capacity 17 | 7 16 20 Most Carried 20 | 2 20 20 Average Carried 13 | . 11 19 Final Capacity 20 | 8 20 20 Final Carried 20 | 2 20 20 Class Distribution -------------------- 69% | Mutant 30% | Scavenger-Mutant Dominant Class ---------------- Mutant | -10/Materials Scavenger-Mutant | -10/Subcaves Resources | -11 -10 -10 ----------- Run | Yrd Mat Sub Matter Collected 1498 | 323 1050 125 Remotely . | . . . Salvage Created 1596 | 200 1035 361 Parts 102 | 12 73 17 Haulers Intercepted 2 | . 2 . Recyclers Shooed 1 | 1 . . Parts Field Recycled . | . . . Retrieved Matter . | . . . Parts Self-Destructed 7 | . . 7 Prevented . | . . . Parts Restored . | . . . Kills | -11 -10 -10 ------- Run | Yrd Mat Sub Combat Hostiles Destroyed 25 | . 17 8 Guns 16 | . 15 1 Cannons 6 | . . 6 AOE 2 | . 2 . Classes Destroyed 11 | 3 6 2 Worker 12 | 2 10 . Builder 1 | . 1 . Tunneler 3 | 2 1 . Hauler 2 | . 2 . Recycler 4 | 1 3 . Operator 2 | . 2 . Watcher 3 | . 3 . Swarmer 10 | . 9 1 Grunt 8 | . 8 . Sentry 1 | . . 1 Subdweller 6 | . . 6 Best Kill Streak 6 | 3 6 2 Combat Bots Only 3 | . 3 2 Max Kills in Single Turn 3 | 1 3 1 Gunslinging . | . . . Exploded 1 | . 1 . Melee . | . . . Uniques/NPCs Destroyed . | . . . Combat | -11 -10 -10 -------- Run | Yrd Mat Sub Hostile Shots Fired 135 | . 102 33 Missed 38 | . 29 9 Hits 97 | . 73 24 Projectile 97 | . 73 24 Critical Strikes 5 | . 1 4 Damage Taken 1147 | . 716 431 Core 259 | . 121 138 Absorbed by Shields . | . . . Redirected to Shielding 11 | . . 11 Regen/Repaired (Parts) 128 | . 128 . Core Remaining (%) 100 | 100 . . Volleys Fired 173 | 14 122 37 Largest 2 | 2 2 2 Hottest 120 | 60 100 120 Shots Fired 334 | 28 239 67 Gun 288 | 28 234 26 Cannon 37 | . . 37 Launcher . | . . . Special 9 | . 5 4 Kinetic 177 | 14 163 . Thermal 46 | . 5 41 Explosive . | . . . Electromagnetic 111 | 14 71 26 Robot Hit Streak 12 | 7 7 12 Robot Miss Streak 4 | 3 4 2 Penetration Max . | . . . Secondary Targets 2 | . 2 . Max Gunslinging Chain 1 | . 1 . Shots Hit Robots 190 | 16 134 40 Core Hits 77 | 6 55 16 Critical Kills . | . . . Critical Parts Destroyed . | . . . Critical Strikes 2 | 1 1 . Corrupt 2 | 1 1 . Melee Attacks . | . . . Impact . | . . . Slashing . | . . . Piercing . | . . . Sneak Attacks . | . . . Combat Hostiles . | . . . Follow-up Attacks . | . . . Damage Inflicted 2716 | 203 1931 582 Guns 2034 | 203 1635 196 Cannons 386 | . . 386 Explosions 292 | . 292 . Melee . | . . . Ramming 4 | . 4 . Kinetic 1186 | 80 1106 . Thermal 678 | . 292 386 Explosive . | . . . Electromagnetic 848 | 123 529 196 Impact . | . . . Slashing . | . . . Piercing . | . . . Highest Corruption . | . . . Average Corruption . | . . . Corruption Purged . | . . . Corruption Blocked . | . . . Overload Shots . | . . . Overflow Damage 1 | . . 1 Projectiles 1 | . . 1 Explosions . | . . . Melee . | . . . Knockbacks . | . . . Impact . | . . . Kinetic . | . . . Secondary . | . . . Self-Inflicted Damage 42 | . 42 . Shots 2 | . 2 . Rammed 2 | . 2 . Targets Rammed 2 | . 2 . Kicked . | . . . Crushed . | . . . Highest Temperature 174 | . 174 45 Average Temperature 44 | . 50 23 Received Heat Transfer 279 | . 198 81 Siege Activations . | . . . Martial Activations . | . . . Shielding Activations . | . . . Robots Disrupted . | . . . Combat Hostiles . | . . . Robots Corrupted 1 | . . 1 Combat Hostiles 1 | . . 1 Parts Fried 5 | 1 . 4 Impact Corruptions . | . . . Robots Melted . | . . . Combat Hostiles . | . . . Parts Melted 1 | . . 1 Heat Transferred 1214 | . 400 814 Parts Sabotaged . | . . . Parts Stolen . | . . . Parts Stripped . | . . . Power Chain Reactions 3 | . 3 . Alert | -11 -10 -10 ------- Run | Yrd Mat Sub Maximum Alert Level . | . . . Low Security (%) 100 | 100 100 . Level 1 . | . . . Level 2 . | . . . Level 3 . | . . . Level 4 . | . . . Level 5 . | . . . High Security . | . . . Max Security . | . . . Peak Influence 148 | 5 148 . Initial . | . . . Average 67 | 1 71 . Influence Increases 728 | 25 663 40 Destroy 0b10 Robot/C 380 | . 340 40 Destroy 0b10 Robot/NC 135 | 25 110 . Destroy Leader 80 | . 80 . Successful Hack 25 | . 25 . Select Force Hacks 30 | . 30 . Disable Machine 30 | . 30 . Destroy Structure 18 | . 18 . Lose Combat Pursuer 30 | . 30 . Influence Decreases 728 | 25 519 184 Entered New Map 70 | . . 70 Time Decay 638 | 25 499 114 Lost Part 20 | . 20 . Squads Dispatched 4 | . 4 . Investigation 2 | . 2 . Extermination . | . . . Reinforcement 2 | . 2 . Assault . | . . . Garrison . | . . . Intercept . | . . . Searches Triggered . | . . . Construction Impeded . | . . . Haulers Reinforced . | . . . Active Scanning Responses . | . . . Cargo Convoy Interrupts . | . . . Stealth | -11 -10 -10 --------- Run | Yrd Mat Sub Distress Signals 2 | . 2 . Communications Jammed . | . . . Distress Signals . | . . . Times Spotted 45 | . 35 10 Peak Tracking Total 4 | . 4 2 Tactical Retreats 1 | . 1 . Traps | -11 -10 -10 ------- Run | Yrd Mat Sub Traps Triggered 2 | . 2 . Indirectly . | . . . Trap Hack Attempts . | . . . Triggered . | . . . Disarmed . | . . . Reprogrammed . | . . . Reused . | . . . Traps Extracted . | . . . Installed . | . . . Triggered . | . . . Machines | -11 -10 -10 ---------- Run | Yrd Mat Sub Machines Disabled 2 | . 2 . Max in Single Turn 1 | . 1 . Machines Repaired . | . . . Machines Dismantled . | . . . Machines Sabotaged . | . . . Overloaded Fab Kills . | . . . Hacking | -11 -10 -10 --------- Run | Yrd Mat Sub Machines Accessed 9 | . 9 . Terminals 6 | . 6 . Fabricators . | . . . Repair Stations 1 | . 1 . Recycling Units 2 | . 2 . Scanalyzers . | . . . Garrison Access . | . . . Total Hacks 37 | . 37 . Successful 22 | . 22 . Failed 15 | . 15 . Catastrophic . | . . . Database Lockouts . | . . . Manual 30 | . 30 . Terminals 27 | . 27 . Fabricators . | . . . Repair Stations 5 | . 5 . Recycling Units 5 | . 5 . Scanalyzers . | . . . Garrison Access . | . . . Terminal Hacks 2 | . 2 . Robot Analysis 1 | . 1 . Terminal Index 1 | . 1 . Fabricator Hacks . | . . . Repair Station Hacks 4 | . 4 . Scan Component 2 | . 2 . Repair 2 | . 2 . Recycling Unit Hacks . | . . . Scanalyzer . | . . . Garrison Access Hacks . | . . . Unauthorized Hacks 16 | . 16 . Terminals 13 | . 13 . Assimilate 1 | . 1 . Botnet 4 | . 4 . Disrupt 1 | . 1 . Operators 1 | . 1 . Skim 6 | . 6 . Fabricators . | . . . Repair Stations . | . . . Recycling Units 3 | . 3 . Reject 1 | . 1 . Recyclers 1 | . 1 . Tunnel 1 | . 1 . Scanalyzers . | . . . Garrison Access . | . . . Data Cores Recovered . | . . . Used . | . . . Hacking Detections 8 | . 8 . Full Trace Events . | . . . Feedback Events . | . . . Feedback Blocked . | . . . Robot Schematics Acquired . | . . . Robots Built . | . . . Authchips . | . . . Time . | . . . Total Robot Build Rating . | . . . Part Schematics Acquired . | . . . Parts Built . | . . . Authchips . | . . . Time . | . . . Total Part Build Rating . | . . . Part Studies Acquired . | . . . Parts Repaired 2 | . 2 . Time 52 | . 52 . Parts Recycled . | . . . Recycled Matter . | . . . Retrieved Matter . | . . . Retrieved Components . | . . . Parts Scanalyzed . | . . . Part Schematics Acquired . | . . . Parts Damaged . | . . . Bothacking | -11 -10 -10 ------------ Run | Yrd Mat Sub Used RIF Installer . | . . . Robots Hacked . | . . . Non-combat . | . . . Combat . | . . . Robot Hacks Applied . | . . . Relay Couplers Released . | . . . Fabnet Peak Effective % . | . . . Robots Rewired . | . . . Allies Hacked . | . . . Hacks Repelled . | . . . Allies | -11 -10 -10 -------- Run | Yrd Mat Sub Total Allies 1 | . 1 . Largest Group 1 | . 1 1 Highest-Rated Group 10 | . 10 10 Highest-Rated Ally 10 | . 10 10 Total Orders 8 | . 6 2 STAY 5 | . 3 2 FOLLOW 3 | . 3 . Ally Attacks . | . . . Total Damage . | . . . Kills . | . . . Allies Corrupted . | . . . Allies Melted . | . . . Intel | -11 -10 -10 ------- Run | Yrd Mat Sub Active Infowar (turns) 1611 | 103 518 990 Terrain 1611 | 103 518 990 Robot Analysis Total 1 | . 1 . Derelict Logs Recovered 1 | . . 1 Drone Launches . | . . . Drone Recoveries . | . . . Exploration | -11 -10 -10 ------------- Run | Yrd Mat Sub Turns Passed 3862 | 165 2626 1071 Spaces Moved 1882 | 71 1137 674 Core 2 | 2 . . Treads 1104 | 69 909 126 Legs . | . . . Wheels 776 | . 228 548 Hover . | . . . Flight . | . . . Fastest Speed 50 | 50 110 110 Average Speed 168 | 156 188 134 Slowest Speed 320 | 160 320 240 Overloaded Moves . | . . . Propulsion Burnouts . | . . . Robots Hopped . | . . . Potential Cave-ins . | . . . Cave-ins Triggered . | . . . Exploration Rate (%) 47 | 4 98 39 Regions Visited 2 Branch Regions 1 Pre-discovered Areas 2 | . 2 . Known Exits Taken . | . . . Unknown Exits Taken 2 | 1 1 . Scrap Searched . | . . . Spaces Dug 2 | . 2 . Terrain Destroyed 15 | . 15 . Melee . | . . . Projectile 4 | . 4 . AOE 11 | . 11 . Terrain Rammed . | . . . Walls Destroyed . | . . . Machines Disabled . | . . . Actions | -11 -10 -10 --------- Run | Yrd Mat Sub Total 2232 | 93 1376 763 Wait 79 | . 61 18 Move 1880 | 70 1136 674 Hop . | . . . Pick Up 36 | 2 25 9 Fast Attach 14 | 7 6 1 Attach 8 | . 4 4 Detach 3 | . 3 . Swap 21 | . 9 12 Drop 16 | . 8 8 Fire 173 | 14 122 37 Melee . | . . . Ram . | . . . Kick . | . . . Crush 2 | . 2 . Escape Stasis . | . . . Rewire . | . . . Trap . | . . . Miscellaneous . | . . . Route ------- -11/Scrapyard -10/Materials (discovered 6 exits: [*Mat x3] / [*Min x2] / [*Sub]) -10/Subcaves (discovered 2 exits: *Mat x2) History --------- Turn | Location | Event 13 | -11/Scrapyard | Discovered new exit (range 15) 166 | -11/Scrapyard | Entered Materials 300 | -10/Materials | Build established: Mutant 377 | -10/Materials | Discovered new exit (range 15) 584 | -10/Materials | Discovered new exit (range 5) 1026 | -10/Materials | Discovered new exit (range 11) 1317 | -10/Materials | Repaired Assault Rifle 1345 | -10/Materials | Repaired EM Pulse Gun 1791 | -10/Materials | Discovered new exit (range 15) 1967 | -10/Materials | Learned 4 Subcaves zone layouts 2021 | -10/Materials | Learned location of 1 exit from Storage 2112 | -10/Materials | Learned Storage stockpile data 2141 | -10/Materials | Learned Storage security intel 2403 | -10/Materials | Discovered new exit (range 16) 2483 | -10/Materials | Discovered new exit (range 8) 2792 | -10/Materials | Entered Subcaves 2792 | -10/Subcaves | Accompanied by 1 ally 2793 | -10/Subcaves | Identified exit to Materials 2812 | -10/Subcaves | Shifting Twisted Machinery released Sub. Power Source 2828 | -10/Subcaves | Shifting Twisted Machinery released Mak. Leg 2918 | -10/Subcaves | Discovered exit to Materials (range 16) 3010 | -10/Subcaves | Build established: Scavenger-Mutant 3167 | -10/Subcaves | A swath of the cavern ceiling suddenly collapsed 3379 | -10/Subcaves | Core integrity fell below 50% 3493 | -10/Subcaves | Core integrity fell below 20% 3863 | -10/Subcaves | Destroyed by 8Y-UIV(R) with Subdweller Machine Gun Last Messages --------------- 03508_ Lgt. Treads fries itself beyond repair. 03509_ Acquired 10 matter. 03510_ Beam Rifle fries itself beyond repair. 03511_ Lgt. Armor Plating fries itself beyond repair. 03515_ Dropped Lgt. Treads. 03515_ Acquired Lgt. Treads. 03517_ Dropped Wheel. 03518_ Acquired Lgt. Treads. 03522_ Acquired Wheel. 03528_ Acquired 20 matter. 03559_ G5-FQH(R) destroyed. 03565_ SF-SXJ(R) destroyed. 03570_ Dropped Targeting Computer. 03573_ Acquired Sub. Optics. 03579_ Dropped Ion Engine. 03581_ Acquired 10 matter. 03583_ Extracted 4 energy. 03815_ Subatomizers dissect the Ion Engine, destroying it. 03825_ Q2-PC1(u) builds Twisted Machinery. Map ----- +----------------------------------------------------+ | ?????????????????????????????????????????????????? | | ?????????????????????????????????????????????????? | | ?????????????????????????????????????????????????? | | ?????????????????????????????????????????????????? | | ?????????????????????????????????????????????????? | | ?????????????????????????????????????????????????? | | ?????????????????????????????????????????????????? | | ?????????????????????????????????????????????????? | | ?????????????????????????????????????????????????? | | ?????????????????????????????????????????????????? | | ?????????????????????????????????????????????????? | | ???????????????????????????????????#????#????????? | | ????????????????????#????????????????????????????? | | ?????????????????? ???????????????????????????? | | ??????????????????? ????????????#???????#??????? | | ??????????????????? ???????#???????????????????? | | ???????????????????? ??????????????????##???????? | | ???????????????????? ?????????#??????????????#?? | | ????????????????????# ?? ??????##????????#?#???#? | | ??????????????#?????# ??? ???#???????#???#??????? | | ????????????????????# ???????#???????????????#??? | | ???????????????????## ??#?????????????????#????? | | ????????????????????# ????#??????###???#???##?#? | | ????????????????????# ?????????????##??#??#?#?#? | | ????????????????????# ###########?????#??????#?# | | ?????????????????????# R@## # #"#####??###?????? | | ???????????????????#?# R """ "#### ####?#? | | ?????????????????????## """" % ###? | | ???????????????????#??## # # ###! # # ## | | ??????????????????#????######## ####"###### | | ??????????????#???#???#???????### ### *#???# ## | | ?????#????????????#????#???????## # ! ########## | | ??????????????????#####?########"""" " #??#?# | | ?????????????????## "### ##"""# "# #??### | | ?????????????????# " """#### % #?#??# | | ???????????????### """## # #??#?# | | ???????????????# # ## """ # =#???## | | ???????????????## ######## # #####?# | | ????????????????# #???#??# ### ## | | ????????????????# ##????##" ### ### | | ?????????##??#??# ##??#?#####?## | | ??????#?## #??### #???##??#???## | | ???????## ### """" #????????? ## ## | | ?????### ##"""" "##???????? ??######## | | ?????# ###""" "##??????????????#????# | | ?????## ###??#""""#??#?#??????? ???#???# | | ??????# #????#""""#??????#?? ?????????### | | ??????####### ##?##""""????????????????? ?????# | | ????????????## #? " ?????????????????? ??????? | | ????????##??## ## #??????????????????????#???? | +----------------------------------------------------+ Best States ------------- Heat Dissipation 25 Energy Generation 15 Energy Capacity 250 Matter Stores 300 Matter Capacity 300 Sight Range 16 Terrain Scan Range 16 Terrain Scan Density 10 Weapon Shielding 33 Evasion (%) 40 Recoil Reduction 2 Offensive Hacking 10 Item Schematics ----------------- None Robot Schematics ------------------ None Fabricated ------------ Nothing Repaired ---------- Assault Rifle | 5% | -10/Materials EM Pulse Gun | 26% | -10/Materials Studied --------- None Alien Tech Used ----------------- None Achievements -------------- None Challenges ------------ None Game ------ Seed SuperdenseHeartImmobilizer Manual? 0 Play Time 00:23:53 Cumulative 662.6 hours Start 2026.03.13 @ 17:48:23 End 2026.03.13 @ 18:24:51 Sessions 1 Manual Loads 0 Difficulty Rogue Special Mode None Game No. 334 Rogue 334 Adventurer 0 Explorer 0 Win Type - Total 7 Types 3/0/2/1/0/0/0/0/0/1 Lore% 87 Gallery% 75 Achievement% 53 Wizard Run 0 Options --------- Layout 2 ASCII 0 Keyboard 1 Movement Vi Keybinds 0 Fullscreen 1 Font 16/Proggy Map View 55x47 Zoom Use 0% Tactical HUD 1 Map Filters NONE Filters NONE Steam 0 RUN: 3a38cf78-523d-401e-bdcc-1fec5eb78b25